fUSD/lending_fUSD_20260605
["ID","MTS","AMOUNT","RATE_DAILY","PERIOD"]
[424158995,1780618246000,-1017.14,0.00029299,7]
[424158994,1780618246000,-875.95,0.00029299,7]
[424159000,1780618246000,-2450.0,0.00029362,30]
[424158989,1780618246000,-287.1,0.00029232,7]
[424158996,1780618246000,-605.31,0.00029299,7]
[424158990,1780618246000,-286.43,0.00029232,7]
[424159011,1780618246000,-684.0,0.00029377,30]
[424159007,1780618246000,-168.75791673,0.0002937,2]
[424159009,1780618246000,-2000.0,0.00029376,30]
[424159006,1780618246000,-514.0,0.00029363,30]
[424159010,1780618246000,-458.0,0.00029377,30]
[424158997,1780618246000,-614.0,0.00029362,30]
[424159002,1780618246000,-581.0,0.00029362,30]
[424158999,1780618246000,-152.0,0.00029362,30]
[424159001,1780618246000,-156.0,0.00029362,30]
[424159059,1780618247000,-1541.829306,0.00029747,7]
[424159058,1780618247000,-1541.829306,0.00029747,7]
[424159060,1780618247000,-1541.829306,0.00029747,7]
[424159061,1780618247000,-500.0,0.00029747,2]
[424159055,1780618247000,-275.83916,0.00029747,7]
[424159056,1780618247000,-275.83916,0.00029747,7]
[424159057,1780618247000,-1541.829306,0.00029747,7]
[424159068,1780618247000,-500.0,0.00029747,2]
[424159063,1780618247000,-500.0,0.00029747,2]
[424159066,1780618247000,-500.0,0.00029747,2]
[424159067,1780618247000,-500.0,0.00029747,2]
[424159069,1780618247000,-500.0,0.00029747,2]
[424159064,1780618247000,-500.0,0.00029747,2]
[424159053,1780618247000,-275.83916,0.00029747,7]
[424159065,1780618247000,-500.0,0.00029747,2]
[424159062,1780618247000,-500.0,0.00029747,2]
[424159051,1780618247000,-187.729829,0.00029747,7]
[424159041,1780618247000,-151.0,0.00029747,7]
[424159054,1780618247000,-275.83916,0.00029747,7]
[424159074,1780618247000,-500.0,0.00029747,2]
[424159037,1780618247000,-343057.50556784,0.00029747,2]
[424159038,1780618247000,-332606.6086515,0.00029747,2]
[424159040,1780618247000,-151.0,0.00029747,7]
[424159039,1780618247000,-10190.7759494,0.00029747,2]
[424159036,1780618247000,-1300.0,0.00029747,2]
[424159042,1780618247000,-151.0,0.00029747,7]
[424159043,1780618247000,-152.594755,0.00029747,7]
[424159045,1780618247000,-151.0,0.00029747,7]
[424159046,1780618247000,-151.0,0.00029747,7]
[424159044,1780618247000,-151.0,0.00029747,7]
[424159048,1780618247000,-187.729829,0.00029747,7]
[424159047,1780618247000,-151.0,0.00029747,7]
[424159049,1780618247000,-187.729829,0.00029747,7]
[424159050,1780618247000,-187.729829,0.00029747,7]
[424159052,1780618247000,-151.0,0.00029747,7]
[424159070,1780618247000,-500.0,0.00029747,2]
[424159073,1780618247000,-500.0,0.00029747,2]
[424159075,1780618247000,-500.0,0.00029747,2]
[424159094,1780618247000,-500.0,0.00029747,2]
[424159096,1780618247000,-500.0,0.00029747,2]
[424159097,1780618247000,-500.0,0.00029747,2]
[424159098,1780618247000,-500.0,0.00029747,2]
[424159099,1780618247000,-500.0,0.00029747,2]
[424159095,1780618247000,-500.0,0.00029747,2]
[424159100,1780618247000,-500.0,0.00029747,2]
[424159092,1780618247000,-500.0,0.00029747,2]
[424159102,1780618247000,-151.0,0.00029747,7]
[424159107,1780618247000,-500.0,0.00029747,2]
[424159108,1780618247000,-500.0,0.00029747,2]
[424159109,1780618247000,-500.0,0.00029747,2]
[424159103,1780618247000,-500.0,0.00029747,2]
[424159105,1780618247000,-500.0,0.00029747,2]
[424159106,1780618247000,-500.0,0.00029747,2]
[424159071,1780618247000,-500.0,0.00029747,2]
[424159101,1780618247000,-500.0,0.00029747,2]
[424159093,1780618247000,-500.0,0.00029747,2]
[424159104,1780618247000,-500.0,0.00029747,2]
[424159091,1780618247000,-500.0,0.00029747,2]
[424159090,1780618247000,-500.0,0.00029747,2]
[424159072,1780618247000,-500.0,0.00029747,2]
[424159077,1780618247000,-500.0,0.00029747,2]
[424159078,1780618247000,-500.0,0.00029747,2]
[424159083,1780618247000,-500.0,0.00029747,2]
[424159085,1780618247000,-500.0,0.00029747,2]
[424159084,1780618247000,-500.0,0.00029747,2]
[424159076,1780618247000,-500.0,0.00029747,2]
[424159080,1780618247000,-500.0,0.00029747,2]
[424159082,1780618247000,-500.0,0.00029747,2]
[424159081,1780618247000,-500.0,0.00029747,2]
[424159088,1780618247000,-500.0,0.00029747,2]
[424159086,1780618247000,-500.0,0.00029747,2]
[424159089,1780618247000,-500.0,0.00029747,2]
[424159079,1780618247000,-500.0,0.00029747,2]
[424159087,1780618247000,-500.0,0.00029747,2]
[424159145,1780618248000,-151.0,0.0002983,7]
[424159142,1780618248000,-150.0,0.000298,2]
[424159144,1780618248000,-151.0,0.0002983,7]
[424159139,1780618248000,-749.673451,0.00029747,7]
[424159141,1780618248000,-1000.0,0.00029799,2]
[424159143,1780618248000,-233353.63987759,0.0002983,2]
[424159140,1780618248000,-1000.0,0.00029799,2]
[424159138,1780618248000,-749.673451,0.00029747,7]
[424159148,1780618248000,-246.517908,0.0002983,7]
[424159146,1780618248000,-151.0,0.0002983,7]
[424159147,1780618248000,-151.0,0.0002983,7]
[424159156,1780618248000,-1107.63007,0.00029902,2]
[424159152,1780618248000,-1030.0,0.00029902,2]
[424159150,1780618248000,-246.517908,0.0002983,7]
[424159151,1780618248000,-246.517908,0.0002983,7]
[424159161,1780618248000,-743.50770149,0.00029902,2]
[424159155,1780618248000,-151.0,0.00029902,2]
[424159154,1780618248000,-1068.11,0.00029902,2]
[424159153,1780618248000,-174.61919141,0.00029902,2]
[424159158,1780618248000,-578.20924308,0.00029902,2]
[424159159,1780618248000,-279.9045709,0.00029902,2]
[424159157,1780618248000,-1148.61238259,0.00029902,2]
[424159160,1780618248000,-1191.11104074,0.00029902,2]
[424159149,1780618248000,-246.517908,0.0002983,7]
[424159137,1780618248000,-749.673451,0.00029747,7]
[424159119,1780618248000,-151.0,0.00029747,7]
[424159131,1780618248000,-151.0,0.00029747,7]
[424159164,1780618248000,-1280.88388877,0.00029902,2]
[424159111,1780618248000,-500.0,0.00029747,2]
[424159112,1780618248000,-500.0,0.00029747,2]
[424159110,1780618248000,-500.0,0.00029747,2]
[424159113,1780618248000,-500.0,0.00029747,2]
[424159114,1780618248000,-500.0,0.00029747,2]
[424159115,1780618248000,-298.342053,0.00029747,2]
[424159116,1780618248000,-151.0,0.00029747,7]
[424159117,1780618248000,-151.0,0.00029747,7]
[424159120,1780618248000,-151.0,0.00029747,7]
[424159118,1780618248000,-151.0,0.00029747,7]
[424159132,1780618248000,-151.0,0.00029747,7]
[424159123,1780618248000,-834.811559,0.00029747,7]
[424159124,1780618248000,-834.811559,0.00029747,7]
[424159121,1780618248000,-151.0,0.00029747,7]
[424159125,1780618248000,-834.811559,0.00029747,7]
[424159127,1780618248000,-151.0,0.00029747,7]
[424159133,1780618248000,-557.281833,0.00029747,7]
[424159126,1780618248000,-151.0,0.00029747,7]
[424159128,1780618248000,-154.2948,0.00029747,7]
[424159136,1780618248000,-749.673451,0.00029747,7]
[424159134,1780618248000,-154.772341,0.00029747,7]
[424159135,1780618248000,-557.281833,0.00029747,7]
[424159129,1780618248000,-557.281833,0.00029747,7]
[424159122,1780618248000,-834.811559,0.00029747,7]
[424159162,1780618248000,-1235.18214925,0.00029902,2]
[424159130,1780618248000,-557.281833,0.00029747,7]
[424159175,1780618248000,-693.39197629,0.00029902,2]
[424159191,1780618248000,-152.0,0.00029902,2]
[424159193,1780618248000,-152.0,0.00029902,2]
[424159190,1780618248000,-152.72135637,0.00029902,2]
[424159194,1780618248000,-2000.0,0.00029923,2]
[424159199,1780618248000,-615.62819535,0.00029923,2]
[424159195,1780618248000,-411.17,0.00029923,2]
[424159207,1780618248000,-243.16403363,0.00029923,2]
[424159209,1780618248000,-195.50135077,0.00029925,2]
[424159210,1780618248000,-491.57903632,0.00029925,2]
[424159206,1780618248000,-207.29594352,0.00029923,2]
[424159201,1780618248000,-456.59623673,0.00029923,2]
[424159196,1780618248000,-269.58,0.00029923,2]
[424159202,1780618248000,-284.35674145,0.00029923,2]
[424159205,1780618248000,-670.01263194,0.00029923,2]
[424159203,1780618248000,-462.40457195,0.00029923,2]
[424159204,1780618248000,-466.59590225,0.00029923,2]
[424159211,1780618248000,-453.89746258,0.00029925,2]
[424159212,1780618248000,-271.50128355,0.00029925,2]
[424159214,1780618248000,-200.98541302,0.00029925,2]
[424159215,1780618248000,-194.42306045,0.00029925,2]
[424159216,1780618248000,-202.22306258,0.00029925,2]
[424159213,1780618248000,-486.69640299,0.00029925,2]
[424159217,1780618248000,-231.14030478,0.00029925,2]
[424159163,1780618248000,-209.40437684,0.00029902,2]
[424159200,1780618248000,-413.97670898,0.00029923,2]
[424159192,1780618248000,-152.0,0.00029902,2]
[424159208,1780618248000,-467.17921719,0.00029923,2]
[424159197,1780618248000,-288.82367599,0.00029923,2]
[424159176,1780618248000,-693.39197629,0.00029902,2]
[424159198,1780618248000,-276.52427342,0.00029923,2]
[424159166,1780618248000,-721.12765534,0.00029902,2]
[424159165,1780618248000,-1328.27659266,0.00029902,2]
[424159167,1780618248000,-693.39197629,0.00029902,2]
[424159168,1780618248000,-1377.42282658,0.00029902,2]
[424159169,1780618248000,-500.0,0.00029902,2]
[424159174,1780618248000,-209.40437684,0.00029902,2]
[424159172,1780618248000,-200.0,0.00029902,2]
[424159171,1780618248000,-151.0,0.00029902,2]
[424159173,1780618248000,-152.0,0.00029902,2]
[424159177,1780618248000,-209.40437684,0.00029902,2]
[424159170,1780618248000,-1428.38747117,0.00029902,2]
[424159178,1780618248000,-152.0,0.00029902,2]
[424159188,1780618248000,-152.0,0.00029902,2]
[424159187,1780618248000,-1000.0,0.00029902,2]
[424159189,1780618248000,-245.2315432,0.00029902,2]
[424159186,1780618248000,-152.0,0.00029902,2]
[424159182,1780618248000,-152.0,0.00029902,2]
[424159185,1780618248000,-1000.0,0.00029902,2]
[424159184,1780618248000,-152.0,0.00029902,2]
[424159180,1780618248000,-200.0,0.00029902,2]
[424159181,1780618248000,-152.0,0.00029902,2]
[424159179,1780618248000,-152.0,0.00029902,2]
[424159183,1780618248000,-1000.0,0.00029902,2]
[424159264,1780618249000,-215.73365239,0.0003,7]
[424159251,1780618249000,-500.0,0.0002999,2]
[424159262,1780618249000,-173.0,0.0003,14]
[424159260,1780618249000,-255.3019663,0.0003,2]
[424159256,1780618249000,-2000.0,0.00029999,5]
[424159250,1780618249000,-200.0,0.00029987,2]
[424159255,1780618249000,-2000.0,0.00029999,3]
[424159257,1780618249000,-2000.0,0.00029999,24]
[424159258,1780618249000,-163.0,0.0003,14]
[424159252,1780618249000,-168.974852,0.00029993,7]
[424159253,1780618249000,-211.43671141,0.00029993,7]
[424159265,1780618249000,-745.65223615,0.00030012,2]
[424159254,1780618249000,-2000.0,0.00029999,10]
[424159263,1780618249000,-200.0,0.0003,2]
[424159274,1780618249000,-1226.0,0.00030027,2]
[424159261,1780618249000,-1000.0,0.0003,7]
[424159268,1780618249000,-1357.0,0.00030017,2]
[424159273,1780618249000,-211.43671141,0.00030026,7]
[424159272,1780618249000,-168.974852,0.00030026,7]
[424159269,1780618249000,-3552.0,0.00030017,2]
[424159271,1780618249000,-525.0,0.00030017,2]
[424159267,1780618249000,-151.0,0.00030012,2]
[424159270,1780618249000,-1273.0,0.00030017,2]
[424159275,1780618249000,-933.0,0.00030027,2]
[424159285,1780618249000,-151.0,0.00030067,2]
[424159286,1780618249000,-150.0,0.0003007,7]
[424159276,1780618249000,-3641.0,0.00030027,2]
[424159259,1780618249000,-176.75411879,0.0003,2]
[424159266,1780618249000,-745.65223615,0.00030012,2]
[424159248,1780618249000,-150.0,0.00029959,7]
[424159221,1780618249000,-629.35880277,0.00029925,2]
[424159247,1780618249000,-150.0,0.00029959,7]
[424159222,1780618249000,-269.38284866,0.00029925,2]
[424159218,1780618249000,-292.51375228,0.00029925,2]
[424159220,1780618249000,-488.00847704,0.00029925,2]
[424159219,1780618249000,-233.10722305,0.00029925,2]
[424159224,1780618249000,-410.0723704,0.00029925,2]
[424159223,1780618249000,-492.03274867,0.00029925,2]
[424159233,1780618249000,-151.0,0.00029957,2]
[424159225,1780618249000,-209.53321065,0.00029953,2]
[424159227,1780618249000,-219.85280897,0.00029953,2]
[424159235,1780618249000,-1000.0,0.00029958,7]
[424159228,1780618249000,-214.43625412,0.00029953,2]
[424159229,1780618249000,-239.78200769,0.00029953,2]
[424159234,1780618249000,-719.04747942,0.00029957,2]
[424159249,1780618249000,-211.43671141,0.00029959,7]
[424159231,1780618249000,-236.66050584,0.00029953,2]
[424159230,1780618249000,-189.40412295,0.00029953,2]
[424159232,1780618249000,-719.04747942,0.00029957,2]
[424159236,1780618249000,-150.0,0.00029959,7]
[424159241,1780618249000,-150.0,0.00029959,7]
[424159239,1780618249000,-150.0,0.00029959,7]
[424159240,1780618249000,-150.0,0.00029959,7]
[424159238,1780618249000,-168.974852,0.00029959,7]
[424159245,1780618249000,-150.0,0.00029959,7]
[424159242,1780618249000,-150.0,0.00029959,7]
[424159244,1780618249000,-150.0,0.00029959,7]
[424159243,1780618249000,-150.0,0.00029959,7]
[424159237,1780618249000,-150.0,0.00029959,7]
[424159246,1780618249000,-150.0,0.00029959,7]
[424159226,1780618249000,-209.84578,0.00029953,2]
[424159279,1780618249000,-150.0,0.00030031,7]
[424159277,1780618249000,-150.0,0.0003003,7]
[424159280,1780618249000,-10000.0,0.00030037,2]
[424159315,1780618249000,-1000.0,0.00030137,120]
[424159316,1780618249000,-2500.0,0.00030137,120]
[424159321,1780618249000,-389.20230715,0.00030137,2]
[424159313,1780618249000,-333.7,0.00030136,30]
[424159317,1780618249000,-1000.0,0.00030137,120]
[424159318,1780618249000,-369.78045339,0.00030137,120]
[424159320,1780618249000,-500.0,0.00030137,3]
[424159323,1780618249000,-500.0,0.00030137,3]
[424159319,1780618249000,-194.60115358,0.00030137,2]
[424159326,1780618249000,-500.0,0.00030137,3]
[424159328,1780618249000,-500.0,0.00030137,3]
[424159325,1780618249000,-150.0,0.00030137,2]
[424159336,1780618249000,-930.00240898,0.00030137,120]
[424159314,1780618249000,-263.08,0.00030137,2]
[424159329,1780618249000,-500.0,0.00030137,3]
[424159327,1780618249000,-500.0,0.00030137,3]
[424159332,1780618249000,-279.34,0.00030137,2]
[424159330,1780618249000,-500.0,0.00030137,3]
[424159331,1780618249000,-435.93,0.00030137,30]
[424159333,1780618249000,-279.34,0.00030137,2]
[424159335,1780618249000,-930.04817964,0.00030137,120]
[424159334,1780618249000,-930.96359283,0.00030137,120]
[424159338,1780618249000,-930.00000602,0.00030137,120]
[424159339,1780618249000,-930.0000003,0.00030137,120]
[424159278,1780618249000,-150.0,0.00030031,7]
[424159343,1780618249000,-279.33,0.00030137,2]
[424159342,1780618249000,-279.33,0.00030137,2]
[424159340,1780618249000,-930.00000002,0.00030137,120]
[424159337,1780618249000,-930.00012045,0.00030137,120]
[424159322,1780618249000,-583.80346073,0.00030137,2]
[424159341,1780618249000,-279.34,0.00030137,2]
[424159309,1780618249000,-150.0,0.00030134,7]
[424159324,1780618249000,-500.0,0.00030137,3]
[424159284,1780618249000,-773.24136889,0.00030067,2]
[424159282,1780618249000,-211.43671141,0.0003006,7]
[424159281,1780618249000,-168.974852,0.0003006,7]
[424159289,1780618249000,-168.974852,0.00030093,7]
[424159287,1780618249000,-150.0,0.0003007,7]
[424159292,1780618249000,-3015.0,0.000301,7]
[424159299,1780618249000,-211.43671141,0.00030127,7]
[424159293,1780618249000,-150.0,0.00030101,7]
[424159298,1780618249000,-168.974852,0.00030127,7]
[424159291,1780618249000,-1069.11,0.000301,30]
[424159294,1780618249000,-150.0,0.00030104,7]
[424159288,1780618249000,-2000.0,0.00030081,14]
[424159290,1780618249000,-211.43671141,0.00030093,7]
[424159283,1780618249000,-773.24136889,0.00030067,2]
[424159297,1780618249000,-151.0,0.00030122,2]
[424159295,1780618249000,-801.85129954,0.00030122,2]
[424159312,1780618249000,-200.0,0.00030135,2]
[424159308,1780618249000,-200.0,0.0003013,2]
[424159304,1780618249000,-149744.43333889,0.0003013,7]
[424159302,1780618249000,-150.0,0.00030129,2]
[424159303,1780618249000,-287.84023026,0.00030129,2]
[424159305,1780618249000,-1917.7331533,0.0003013,2]
[424159310,1780618249000,-452.34331526,0.00030135,7]
[424159296,1780618249000,-264.95129955,0.00030122,2]
[424159306,1780618249000,-200.0,0.0003013,2]
[424159307,1780618249000,-158.71573141,0.0003013,7]
[424159301,1780618249000,-2000.0,0.00030129,7]
[424159300,1780618249000,-2000.0,0.00030129,2]
[424159311,1780618249000,-150.0,0.00030135,2]
[424159374,1780618250000,-862.28603014,0.00030232,2]
[424159379,1780618250000,-333.7,0.00030236,30]
[424159370,1780618250000,-252.06,0.000302,2]
[424159376,1780618250000,-210.94739591,0.00030236,30]
[424159384,1780618250000,-150.0,0.00030248,7]
[424159386,1780618250000,-211.43671141,0.00030262,7]
[424159378,1780618250000,-200.21,0.00030236,30]
[424159375,1780618250000,-151.0,0.00030232,2]
[424159377,1780618250000,-333.7,0.00030236,30]
[424159380,1780618250000,-4221.2,0.00030239,2]
[424159381,1780618250000,-150.0,0.00030242,7]
[424159385,1780618250000,-150.0,0.00030248,7]
[424159391,1780618250000,-151.0,0.00030287,2]
[424159383,1780618250000,-504.0,0.00030247,5]
[424159390,1780618250000,-894.19061325,0.00030287,2]
[424159394,1780618250000,-168.974852,0.00030295,7]
[424159398,1780618250000,-150.0,0.00030313,7]
[424159393,1780618250000,-150.0,0.00030292,7]
[424159387,1780618250000,-168.974852,0.00030262,7]
[424159395,1780618250000,-211.43671141,0.00030295,7]
[424159388,1780618250000,-351.57899318,0.00030273,2]
[424159392,1780618250000,-150.0,0.00030292,7]
[424159389,1780618250000,-179.20247452,0.00030275,2]
[424159368,1780618250000,-273.71,0.000302,2]
[424159382,1780618250000,-500.0,0.00030247,2]
[424159372,1780618250000,-168.974852,0.00030228,7]
[424159353,1780618250000,-1500.0,0.00030137,15]
[424159373,1780618250000,-211.43671141,0.00030228,7]
[424159397,1780618250000,-150.0,0.00030309,7]
[424159349,1780618250000,-1500.0,0.00030137,15]
[424159347,1780618250000,-1500.0,0.00030137,15]
[424159346,1780618250000,-1500.0,0.00030137,15]
[424159348,1780618250000,-1500.0,0.00030137,15]
[424159344,1780618250000,-279.33,0.00030137,2]
[424159345,1780618250000,-150.0,0.00030137,2]
[424159351,1780618250000,-1500.0,0.00030137,15]
[424159361,1780618250000,-831.51979762,0.00030177,2]
[424159362,1780618250000,-151.0,0.00030177,2]
[424159354,1780618250000,-1786.246574,0.00030137,15]
[424159355,1780618250000,-26925.0,0.00030145,2]
[424159352,1780618250000,-1500.0,0.00030137,15]
[424159350,1780618250000,-1500.0,0.00030137,15]
[424159358,1780618250000,-150.0,0.00030171,7]
[424159360,1780618250000,-150.0,0.00030176,7]
[424159359,1780618250000,-150.0,0.00030176,7]
[424159357,1780618250000,-211.43671141,0.00030161,7]
[424159356,1780618250000,-168.974852,0.00030161,7]
[424159365,1780618250000,-168.974852,0.00030194,7]
[424159364,1780618250000,-150.0,0.00030181,7]
[424159363,1780618250000,-150.0,0.00030181,7]
[424159367,1780618250000,-151.0,0.00030197,7]
[424159366,1780618250000,-211.43671141,0.00030194,7]
[424159371,1780618250000,-188.26,0.000302,2]
[424159369,1780618250000,-15814.82281071,0.000302,2]
[424159396,1780618250000,-1048.27,0.000303,7]
[424159429,1780618250000,-1707.67,0.000304,7]
[424159401,1780618250000,-168.974852,0.00030329,7]
[424159427,1780618250000,-961.58486558,0.00030397,2]
[424159432,1780618250000,-178.9,0.00030411,120]
[424159455,1780618250000,-150.0,0.00030465,7]
[424159430,1780618250000,-150.0,0.00030403,7]
[424159431,1780618250000,-150.0,0.00030403,7]
[424159435,1780618250000,-200.0,0.00030431,2]
[424159437,1780618250000,-150.0,0.00030434,7]
[424159438,1780618250000,-200.0,0.00030436,2]
[424159444,1780618250000,-1481.2378076,0.0003045,2]
[424159443,1780618250000,-500.0,0.0003045,2]
[424159441,1780618250000,-771.01748644,0.0003045,2]
[424159436,1780618250000,-200.0,0.00030431,2]
[424159442,1780618250000,-217.15233878,0.0003045,2]
[424159439,1780618250000,-181.08010149,0.0003045,2]
[424159445,1780618250000,-200.0,0.0003045,2]
[424159447,1780618250000,-217.15233878,0.0003045,2]
[424159446,1780618250000,-217.15233878,0.0003045,2]
[424159450,1780618250000,-997.16350561,0.00030452,2]
[424159451,1780618250000,-151.0,0.00030452,2]
[424159448,1780618250000,-719.04747942,0.0003045,2]
[424159449,1780618250000,-200.0,0.0003045,2]
[424159453,1780618250000,-168.974852,0.00030463,7]
[424159452,1780618250000,-150.0,0.00030455,7]
[424159454,1780618250000,-211.43671141,0.00030463,7]
[424159399,1780618250000,-150.0,0.00030321,7]
[424159425,1780618250000,-168.974852,0.00030396,7]
[424159424,1780618250000,-150.0,0.00030393,7]
[424159440,1780618250000,-290.26104002,0.0003045,2]
[424159426,1780618250000,-211.43671141,0.00030396,7]
[424159428,1780618250000,-151.0,0.00030397,2]
[424159400,1780618250000,-150.0,0.00030321,7]
[424159402,1780618250000,-211.43671141,0.00030329,7]
[424159403,1780618250000,-927.27566594,0.00030342,2]
[424159410,1780618250000,-581.0,0.00030362,30]
[424159407,1780618250000,-152.0,0.00030362,30]
[424159405,1780618250000,-614.0,0.00030362,30]
[424159408,1780618250000,-2450.0,0.00030362,30]
[424159404,1780618250000,-151.0,0.00030342,2]
[424159409,1780618250000,-162.0,0.00030362,30]
[424159414,1780618250000,-211.43671141,0.00030362,7]
[424159411,1780618250000,-3089.0,0.00030362,30]
[424159413,1780618250000,-168.974852,0.00030362,7]
[424159406,1780618250000,-357.0,0.00030362,30]
[424159412,1780618250000,-391.0,0.00030362,30]
[424159433,1780618250000,-168.974852,0.0003043,7]
[424159423,1780618250000,-150.0,0.00030393,7]
[424159422,1780618250000,-150.0,0.00030384,7]
[424159418,1780618250000,-458.0,0.00030377,30]
[424159421,1780618250000,-1560.0,0.00030377,30]
[424159434,1780618250000,-211.43671141,0.0003043,7]
[424159417,1780618250000,-2087.47,0.00030371,7]
[424159420,1780618250000,-299.0,0.00030377,30]
[424159416,1780618250000,-514.0,0.00030363,30]
[424159415,1780618250000,-1763.0,0.00030363,30]
[424159419,1780618250000,-684.0,0.00030377,30]
[424159499,1780618251000,-648.92853732,0.00030506,2]
[424159496,1780618251000,-431.89152006,0.00030506,2]
[424159493,1780618251000,-413.78986884,0.00030506,2]
[424159497,1780618251000,-605.19661678,0.00030506,2]
[424159498,1780618251000,-543.0025671,0.00030506,2]
[424159492,1780618251000,-568.7134829,0.00030506,2]
[424159489,1780618251000,-486.32806725,0.00030504,2]
[424159494,1780618251000,-655.43871509,0.00030506,2]
[424159490,1780618251000,-622.90562291,0.00030504,2]
[424159491,1780618251000,-391.00270155,0.00030506,2]
[424159500,1780618251000,-401.97082603,0.00030506,2]
[424159495,1780618251000,-367.38709948,0.00030506,2]
[424159502,1780618251000,-415.20961672,0.00030506,2]
[424159517,1780618251000,-732.01271556,0.00030506,2]
[424159501,1780618251000,-404.44612517,0.00030506,2]
[424159510,1780618251000,-200.91472526,0.00030506,2]
[424159511,1780618251000,-394.85989273,0.00030506,2]
[424159508,1780618251000,-427.77189756,0.00030506,2]
[424159512,1780618251000,-585.02750455,0.00030506,2]
[424159507,1780618251000,-436.30202957,0.00030506,2]
[424159503,1780618251000,-336.43652496,0.00030506,2]
[424159506,1780618251000,-893.35017592,0.00030506,2]
[424159504,1780618251000,-157.50109676,0.00030506,2]
[424159505,1780618251000,-159.83403232,0.00030506,2]
[424159513,1780618251000,-466.21444609,0.00030506,2]
[424159515,1780618251000,-388.84612091,0.00030506,2]
[424159488,1780618251000,-370.92585577,0.00030504,2]
[424159509,1780618251000,-151.46468938,0.00030506,2]
[424159485,1780618251000,-778.40461431,0.00030504,2]
[424159461,1780618251000,-196.48884048,0.00030504,2]
[424159482,1780618251000,-699.89385337,0.00030504,2]
[424159456,1780618251000,-150.0,0.00030465,7]
[424159457,1780618251000,-150.0,0.00030484,7]
[424159516,1780618251000,-396.34783679,0.00030506,2]
[424159460,1780618251000,-558.46,0.000305,7]
[424159458,1780618251000,-168.974852,0.00030497,7]
[424159462,1780618251000,-382.58240841,0.00030504,2]
[424159459,1780618251000,-211.43671141,0.00030497,7]
[424159463,1780618251000,-398.2888122,0.00030504,2]
[424159464,1780618251000,-185.62484082,0.00030504,2]
[424159465,1780618251000,-335.94333615,0.00030504,2]
[424159470,1780618251000,-340.81357991,0.00030504,2]
[424159466,1780618251000,-254.69439374,0.00030504,2]
[424159474,1780618251000,-154.40514762,0.00030504,2]
[424159483,1780618251000,-414.59188704,0.00030504,2]
[424159467,1780618251000,-283.29765806,0.00030504,2]
[424159471,1780618251000,-317.19127502,0.00030504,2]
[424159472,1780618251000,-329.84787218,0.00030504,2]
[424159475,1780618251000,-383.09573168,0.00030504,2]
[424159473,1780618251000,-399.97725993,0.00030504,2]
[424159476,1780618251000,-240.72063828,0.00030504,2]
[424159487,1780618251000,-364.0367666,0.00030504,2]
[424159480,1780618251000,-608.7949823,0.00030504,2]
[424159477,1780618251000,-154.67999322,0.00030504,2]
[424159479,1780618251000,-620.96506348,0.00030504,2]
[424159478,1780618251000,-820.8375938,0.00030504,2]
[424159481,1780618251000,-616.53942926,0.00030504,2]
[424159486,1780618251000,-432.75706051,0.00030504,2]
[424159484,1780618251000,-416.78221074,0.00030504,2]
[424159469,1780618251000,-238.82427377,0.00030504,2]
[424159524,1780618251000,-297.42160564,0.00030511,2]
[424159468,1780618251000,-350.7169953,0.00030504,2]
[424159523,1780618251000,-201.67035082,0.00030511,2]
[424159553,1780618251000,-150.0,0.0003061,7]
[424159564,1780618251000,-168.974852,0.00030699,7]